bitfinex/quotes_ETHUSD_20250424
["timestamp","ask_amount","ask_price","bid_price","bid_amount"]
[1745477082355,5.64877572,1770.3,1770.1,0.71230001]
[1745477083427,10.45261902,1770.4,1770.1,0.71230001]
[1745477084030,5.64889805,1770.3,1770.1,0.71230001]
[1745477085565,10.45261294,1770.4,1770.1,0.71230001]
[1745477085764,5.64876996,1770.3,1770.1,0.71230001]
[1745477086566,10.45261294,1770.4,1770.1,0.71230001]
[1745477086971,5.64876574,1770.3,1770.1,0.71230001]
[1745477089179,6.69404231,1770.3,1770.1,1e-08]
[1745477089385,6.69422706,1770.3,1770.1,1e-08]
[1745477090282,5.6490792,1770.2,1770.1,1e-08]
[1745477090457,6.69435521,1770.3,1770.1,1e-08]
[1745477090657,6.69434293,1770.3,1770.1,1e-08]
[1745477090881,6.69431003,1770.3,1770.1,1e-08]
[1745477092775,12.34336637,1770.3,1770.1,1e-08]
[1745477092983,6.69431003,1770.3,1770.1,1e-08]
[1745477094083,5.6490792,1770.2,1770.1,1e-08]
[1745477095502,6.69415486,1770.3,1770.1,1e-08]
[1745477096665,5.6490792,1770.2,1770.1,1e-08]
[1745477098801,10.45264867,1770.4,1770.1,1e-08]
[1745477099004,5.6487903,1770.3,1770.1,1e-08]
[1745477101004,10.45265156,1770.4,1770.1,1e-08]
[1745477101214,5.64880304,1770.3,1770.1,1e-08]
[1745477101796,10.45265156,1770.4,1770.1,1e-08]
[1745477102099,5.64877091,1770.3,1770.1,1e-08]
[1745477102476,11.29778313,1770.3,1770.1,1e-08]
[1745477102683,5.64877091,1770.3,1770.1,1e-08]
[1745477103922,5.6490792,1770.2,1770.1,1e-08]
[1745477105118,5.64892821,1770.3,1770.1,1e-08]
[1745477105321,6.5185365,1770.3,1770.1,1e-08]
[1745477106007,5.6490792,1770.2,1770.1,1e-08]
[1745477106319,0.86960829,1770.3,1770.1,1e-08]
[1745477106320,6.51857602,1770.3,1770.1,1e-08]
[1745477107019,5.6490792,1770.2,1770.1,1e-08]
[1745477107423,6.51856797,1770.3,1770.1,1e-08]
[1745477107918,12.16758114,1770.3,1770.1,1e-08]
[1745477108218,6.51856797,1770.3,1770.1,1e-08]
[1745477110917,0.86960829,1770.3,1770.1,1e-08]
[1745477111229,5.6490792,1770.2,1770.1,1e-08]
[1745477111787,5.64907514,1770.3,1770.1,1e-08]
[1745477112018,5.64900862,1770.3,1770.1,1e-08]
[1745477112524,11.29802855,1770.3,1770.1,1e-08]
[1745477112726,5.64900862,1770.3,1770.1,1e-08]
[1745477113885,4.804,1770.4,1770.1,1e-08]
[1745477114087,5.64895153,1770.3,1770.1,1e-08]
[1745477114990,6.21190485,1770.4,1770.1,1e-08]
[1745477115192,11.01190485,1770.4,1770.1,1e-08]
[1745477115995,5.64880379,1770.3,1770.1,1e-08]
[1745477116589,11.0118459,1770.4,1770.1,1e-08]
[1745477116794,1.10118459,1770.3,1770.1,1e-08]
[1745477116993,10.4485859,1770.4,1770.1,1e-08]
[1745477117163,5.64876586,1770.3,1770.1,1e-08]
[1745477119092,11.29782166,1770.3,1770.1,1e-08]
[1745477119391,5.64876586,1770.3,1770.1,1e-08]
[1745477120093,11.29783136,1770.3,1770.1,1e-08]
[1745477120693,5.64876586,1770.3,1770.1,1e-08]
[1745477122293,11.2977901,1770.3,1770.1,1e-08]
[1745477122501,5.6490792,1770.2,1770.1,1e-08]
[1745477122674,5.64896033,1770.3,1770.1,1e-08]
[1745477122992,11.29797649,1770.3,1770.1,1e-08]
[1745477123392,5.64896033,1770.3,1770.1,1e-08]
[1745477124498,5.6490792,1770.2,1770.1,1e-08]
[1745477126329,6.4217792,1770.2,1770.1,1e-08]
[1745477126608,10.82559237,1770.2,1770.1,1e-08]
[1745477130234,5.65131393,1769.5,1769.4,0.7123]
[1745477130932,4.801,1769.7,1769.4,0.7123]
[1745477131097,6.82061828,1770.2,1769.9,5.64988632]
[1745477131292,6.82061828,1770.2,1770.1,1.40381317]
[1745477131498,6.82061828,1770.2,1770.1,0.7123]
[1745477131932,6.82061828,1770.2,1770.0,1.9688018]
[1745477132133,6.82061828,1770.2,1769.8,0.7123]
[1745477132318,10.45055755,1770.1,1769.5,2.11611317]
[1745477132520,10.45059704,1770.1,1769.7,0.7123]
[1745477132929,5.64985073,1770.0,1769.7,0.7123]
[1745477133939,10.45058958,1770.1,1769.7,0.7123]
[1745477134141,4.801,1770.1,1769.7,6.36269652]
[1745477134441,10.45046593,1770.1,1769.8,0.7123]
[1745477137140,5.64984044,1770.0,1769.8,0.7123]
[1745477139539,5.65003672,1769.9,1769.8,0.7123]
[1745477139745,5.6498976,1770.0,1769.8,0.7123]
[1745477140247,5.6503867,1769.8,1769.7,0.7123]
[1745477140544,5.6503867,1769.8,1769.6,0.7123]
[1745477140545,5.65037033,1769.8,1769.6,0.7123]
[1745477141552,5.65022382,1769.9,1769.6,0.7123]
[1745477143546,5.65053263,1769.8,1769.6,0.7123]
[1745477144276,5.65067525,1769.7,1769.4,0.7123]
[1745477145079,5.65116753,1769.6,1769.3,0.7123]
[1745477147245,5.65003672,1769.9,1769.5,5.65119078]
[1745477147246,5.65016052,1769.9,1769.5,5.65119078]
[1745477148072,10.45055001,1770.1,1769.7,6.36291505]
[1745477148444,10.45055001,1770.1,1769.7,0.7123]
[1745477148645,5.6497259,1770.0,1769.7,0.7123]
[1745477149587,10.45054129,1770.1,1769.7,6.36295515]
[1745477150864,4.801,1770.1,1769.8,5.65022451]
[1745477151671,4.801,1770.1,1769.7,7.10008806]
[1745477151876,10.93067315,1770.1,1769.7,6.36283824]
[1745477152176,5.64975795,1770.0,1769.7,0.7123]
[1745477152877,10.93051053,1770.1,1769.7,0.7123]
[1745477153210,10.9306057,1770.1,1769.7,6.36292278]
[1745477153396,5.6497546,1770.0,1769.7,0.7123]
[1745477155821,10.9306057,1770.1,1769.7,6.36296337]
[1745477156027,1.09306057,1770.0,1769.7,6.36295975]
[1745477156198,10.4505057,1770.1,1769.7,6.36295975]
[1745477158128,10.4505057,1770.1,1769.7,6.36273491]
[1745477158503,4.801,1770.1,1769.8,5.65031378]
[1745477160028,10.45041155,1770.1,1769.7,6.3627243]
[1745477160929,4.801,1770.1,1769.8,5.65034939]
[1745477161129,5.84602659,1770.1,1769.8,5.65034939]
[1745477161330,4.801,1770.1,1769.8,5.65034939]
[1745477161834,10.45043956,1770.1,1769.7,6.3627243]
[1745477162628,5.64990546,1770.0,1769.7,0.7123]
[1745477165047,11.29990753,1770.0,1769.6,5.65078014]
[1745477165227,5.64990546,1770.0,1769.6,5.65078014]
[1745477165855,11.26918162,1770.1,1769.7,0.7123]
[1745477166025,4.801,1770.1,1769.8,5.65034555]
[1745477167730,10.4504182,1770.1,1769.8,5.65034555]
[1745477167940,10.4504182,1770.1,1769.7,12.01323948]
[1745477168149,10.4504182,1770.1,1769.7,6.36275702]
[1745477168534,4.801,1770.1,1769.7,6.36275123]
[1745477168849,4.801,1770.1,1769.8,5.65027227]
[1745477169001,4.801,1770.1,1769.7,6.36275123]
[1745477169206,4.801,1770.1,1769.7,7.5641178]
[1745477169438,10.45041082,1770.1,1769.7,7.5641178]
[1745477170105,4.801,1770.1,1769.7,13.21460696]
[1745477170321,4.801,1770.1,1769.9,6.36221362]
[1745477170538,10.44558089,1770.4,1770.0,5.64970462]
[1745477170744,11.57199898,1770.4,1769.9,7.0993747]
[1745477171052,5.64876142,1770.3,1769.9,7.0993747]
[1745477171917,5.64914559,1770.2,1769.9,0.7123]
[1745477173987,5.64897163,1770.3,1769.9,0.7123]
[1745477174131,5.64897163,1770.3,1769.9,6.36231661]
[1745477174333,6.52028699,1770.3,1769.9,0.7123]
[1745477174551,5.64929038,1770.2,1769.9,0.7123]
[1745477175082,0.8186,1770.2,1769.7,0.7123]
[1745477175281,5.64989482,1770.0,1769.7,0.7123]
[1745477175561,5.64958717,1770.1,1769.7,0.7123]
[1745477175859,5.64958717,1770.1,1769.7,6.36295326]
[1745477176758,5.64924979,1770.2,1769.8,5.65018475]
[1745477176934,6.77566788,1770.2,1769.8,5.65018475]
[1745477177266,5.6494103,1770.1,1769.7,7.10001597]
[1745477178267,5.6494103,1770.1,1769.7,12.75046592]
[1745477178432,5.6494103,1770.1,1769.7,7.09999977]
[1745477179270,11.27674945,1770.4,1770.0,5.64965103]
[1745477179442,11.27674945,1770.4,1769.9,7.09943243]
[1745477179443,6.77643867,1770.3,1769.9,7.09943243]
[1745477179629,6.77643867,1770.3,1769.9,6.36218261]
[1745477179965,1.12767495,1770.3,1769.9,6.36218261]
[1745477180462,6.77644581,1770.3,1769.9,6.36220517]
[1745477184576,1.12767495,1770.3,1770.0,5.64964946]
[1745477184868,6.48046475,1770.2,1769.7,0.7123]
[1745477185034,0.8312,1770.2,1769.9,5.64987994]
[1745477185555,0.8312,1770.2,1769.8,5.65013626]
[1745477185771,0.8312,1770.2,1769.9,5.65000527]
[1745477186478,0.8312,1770.4,1770.1,5.64927847]
[1745477186835,6.47968836,1770.4,1770.0,5.64956145]
[1745477190526,0.8312,1770.4,1770.0,5.64949366]
[1745477190826,0.8312,1770.4,1770.1,5.64936966]
[1745477192531,0.8312,1770.4,1770.1,5.64927529]
[1745477193746,6.47976352,1770.4,1770.0,5.64958875]
[1745477194043,0.8312,1770.4,1770.1,6.2143418]
[1745477195843,4.797,1770.5,1770.1,6.21411574]
[1745477196147,4.797,1770.5,1770.2,6.36118148]
[1745477197653,4.797,1770.5,1770.3,5.64875485]
[1745477197816,4.797,1770.5,1770.2,6.36117307]
[1745477198014,4.797,1770.5,1770.3,0.63611731]
[1745477198732,0.8187,1770.4,1770.1,6.21421454]
[1745477199241,0.8187,1770.4,1770.1,11.86337718]
[1745477199549,10.44534629,1770.5,1770.2,5.64907379]
[1745477199724,4.797,1770.5,1770.2,5.64907379]
[1745477199910,4.797,1770.5,1770.2,5.64886588]
[1745477200253,4.797,1770.5,1770.3,6.21336692]
[1745477200615,6.46636388,1770.7,1770.3,6.21336692]
[1745477201049,12.11409747,1770.7,1770.3,6.21336692]
[1745477201251,5.64784076,1770.6,1770.3,0.56488659]
[1745477202148,0.8187,1770.7,1770.4,5.64825917]
[1745477202351,3.78737028,1770.9,1770.6,5.6477346]
[1745477202517,3.78737028,1770.9,1770.8,6.38441494]
[1745477202849,3.78737028,1770.9,1770.8,5.64716512]
[1745477203027,3.78737028,1771.0,1770.8,5.64716512]
[1745477203351,3.78737028,1771.0,1770.9,9.35914623]
[1745477203519,3.78737028,1771.0,1770.9,10.93347786]
[1745477205946,3.78737028,1771.0,1770.9,11.67072768]
[1745477206158,3.78737028,1771.0,1770.9,10.93347786]
[1745477207059,6.43097783,1771.7,1771.2,4.84879628]
[1745477207237,6.43097783,1771.7,1771.3,5.64552616]
[1745477207751,0.7866,1771.7,1771.4,5.64524354]
[1745477208572,6.43111081,1771.7,1771.3,0.73724982]
[1745477208883,7.63862035,1771.7,1771.2,12.00360662]
[1745477209092,7.63862035,1771.7,1771.3,5.64556883]
[1745477209781,7.63862035,1771.7,1771.2,6.35795244]
[1745477210593,0.7866,1771.7,1771.3,0.73724982]
[1745477210747,5.609,1771.9,1771.5,7.09429916]
[1745477211244,11.25267279,1771.9,1771.5,7.09429916]
[1745477211445,5.609,1771.9,1771.5,7.09429916]
[1745477211773,11.25267111,1771.9,1771.5,7.09429916]
[1745477213985,5.609,1771.9,1771.5,8.36823002]
[1745477214281,5.609,1771.9,1771.6,5.64449885]
[1745477214858,5.64317639,1772.1,1771.7,5.64422588]
[1745477215043,0.814,1772.1,1771.7,6.38138325]
[1745477215245,0.814,1772.1,1771.8,5.64397174]
[1745477215456,0.814,1772.1,1771.7,6.38142327]
[1745477215659,0.814,1772.1,1771.7,1.93983995]
[1745477215902,0.5,1772.2,1771.9,7.09308263]
[1745477216111,0.5,1772.2,1772.0,5.64319521]
[1745477216707,0.5,1772.2,1772.1,5.6430224]
[1745477216995,0.5,1772.2,1772.1,0.73724982]
[1745477217202,0.5,1772.2,1771.9,10.09304487]
[1745477217495,0.5,1772.2,1772.0,6.65263416]
[1745477217902,0.5,1772.2,1772.1,5.6430224]
[1745477218288,0.5,1772.2,1772.0,6.65251505]
[1745477219000,5.64321382,1772.1,1771.7,1.44954982]
[1745477219190,1.314,1772.2,1771.5,6.24054982]
[1745477219503,5.64350825,1772.0,1771.6,5.64448539]
[1745477220494,5.64317997,1772.1,1771.6,11.28886309]
[1745477220700,5.64347238,1772.0,1771.5,11.88527624]
[1745477220902,6.45785964,1771.9,1771.5,7.09427624]
[1745477226673,0.8154,1771.6,1771.3,3.0]
[1745477226821,6.46001864,1771.6,1771.3,3.0]
[1745477228119,0.8154,1771.6,1771.3,5.64555259]
[1745477228286,6.46004742,1771.6,1771.2,7.09526605]
[1745477228615,0.8154,1771.6,1771.3,5.64547732]
[1745477229282,6.46002407,1771.6,1771.2,8.66937255]
[1745477230412,6.46002407,1771.6,1771.2,3.02367969]
[1745477230735,5.64495293,1771.5,1771.2,0.73724982]
[1745477230941,6.46006812,1771.6,1771.2,0.73724982]
[1745477231117,6.46006812,1771.6,1771.2,6.38302009]
[1745477231319,12.10493823,1771.6,1771.2,6.38302009]
[1745477231508,0.8154,1771.6,1771.2,0.73724982]
[1745477231841,6.46021668,1771.6,1771.2,6.38311637]
[1745477232438,12.10509351,1771.6,1771.2,6.38311637]
[1745477232743,6.46021668,1771.6,1771.2,6.38311637]
[1745477233534,5.6450131,1771.5,1771.2,0.73724982]
[1745477233738,0.8154,1771.6,1771.3,5.64535766]
[1745477234116,6.45948474,1771.8,1771.4,6.38229662]
[1745477234317,0.8154,1771.8,1771.6,6.38178629]
[1745477234521,0.8154,1772.0,1771.7,5.64416585]
[1745477235208,6.45884852,1772.0,1771.6,7.09395437]
[1745477235507,6.45884852,1772.0,1771.6,8.36782508]
[1745477236425,5.64397952,1771.8,1771.4,14.88360352]
[1745477238254,6.405843,1771.7,1771.4,7.789]
[1745477238416,5.64479644,1771.6,1771.3,3.0]
[1745477239115,5.64461503,1771.6,1771.3,3.0]
[1745477239708,6.40587567,1771.7,1771.3,5.64556304]
[1745477240110,0.7614,1771.7,1771.4,6.38241636]
[1745477240355,6.40550307,1771.8,1771.4,7.09464353]
[1745477241846,0.7614,1771.8,1771.4,7.09459094]
[1745477242011,6.40541208,1771.8,1771.4,7.09459094]
[1745477242650,6.40541208,1771.8,1771.4,12.73959724]
[1745477242814,0.7614,1771.8,1771.4,14.13384371]
[1745477243149,0.7614,1771.8,1771.4,8.48880259]
[1745477243346,6.40486492,1772.0,1771.6,6.38170284]
[1745477245846,12.04849028,1772.0,1771.6,6.38170284]
[1745477246232,5.64369195,1771.9,1771.6,0.73724982]
[1745477246458,0.7614,1772.0,1771.4,8.48875901]
[1745477246659,5.6439055,1771.9,1771.5,6.49379629]
[1745477248363,5.6439055,1771.9,1771.5,6.4936329]
[1745477249028,5.6439055,1771.9,1771.5,6.49360506]
[1745477249232,5.6439055,1771.9,1771.6,5.64459154]
[1745477249949,11.19334898,1772.2,1771.7,0.7123]
[1745477250154,11.19334898,1772.2,1771.7,6.35640707]
[1745477250338,5.64305183,1772.1,1771.7,7.63021781]
[1745477250521,5.64305183,1772.1,1771.7,1.98611074]
[1745477250968,5.64305183,1772.1,1771.7,7.63029095]
[1745477251126,11.28632473,1772.1,1771.7,7.63029095]
[1745477251765,11.28635976,1772.1,1771.7,7.63029095]
[1745477252460,5.64305183,1772.1,1771.7,7.63029095]
[1745477252663,0.7614,1772.2,1772.0,6.38031231]
[1745477252966,0.8141,1772.5,1772.1,5.64284051]
[1745477253165,0.8141,1772.5,1772.1,5.64278371]
[1745477253570,0.8141,1772.5,1772.1,11.28565356]
[1745477253758,1.93856335,1772.5,1772.1,11.28555704]
[1745477253959,1.93856335,1772.5,1772.1,5.64277333]
[1745477254141,7.58042374,1772.5,1772.1,5.64277333]
[1745477255862,1.93856335,1772.5,1772.2,5.64268842]
[1745477256067,0.8141,1772.5,1772.2,5.64268842]
[1745477256264,4.789,1772.6,1772.3,5.64209929]
[1745477256442,10.24274682,1772.7,1772.3,6.35439929]
[1745477257155,10.24274682,1772.7,1772.3,0.7123]
[1745477257565,5.64155311,1772.6,1772.3,0.7123]
[1745477257772,5.64155311,1772.6,1772.3,0.70920398]
[1745477258274,6.45623345,1772.4,1772.1,0.7123]
[1745477259141,6.45623345,1772.4,1772.0,7.09273857]
[1745477259368,6.45623345,1772.4,1772.1,0.70927386]
[1745477259770,5.6429144,1772.2,1771.8,10.11929812]
[1745477260086,5.6425657,1772.3,1771.9,5.6436535]
[1745477261242,5.64290471,1772.2,1771.8,7.11919859]
[1745477263182,5.64335456,1772.0,1771.7,3.73724982]
[1745477263475,6.45712621,1772.1,1771.7,3.73724982]
[1745477263682,6.45712621,1772.1,1771.7,9.38152134]
[1745477263847,6.45712621,1772.1,1771.7,6.38152134]
[1745477265483,0.8141,1772.1,1771.8,5.64394216]
[1745477265891,5.64287296,1772.2,1771.8,5.64394216]
[1745477266253,5.64287296,1772.2,1771.7,6.38136486]
[1745477266254,5.64303666,1772.1,1771.7,6.38136486]
[1745477266558,5.64303666,1772.1,1771.7,7.65517836]
[1745477266786,6.42387407,1772.0,1771.7,0.73724982]
[1745477267991,0.7805,1772.0,1771.7,6.38153148]
[1745477268179,6.42353666,1772.1,1771.7,6.38153148]
[1745477268484,5.64355319,1772.0,1771.7,0.73724982]
[1745477269680,6.4236668,1772.1,1771.7,6.38152193]
[1745477270055,12.06695441,1772.1,1771.7,6.38152193]
[1745477270397,5.64340371,1772.0,1771.7,0.73724982]
[1745477270886,6.42374217,1772.1,1771.7,0.73724982]
[1745477271085,6.42374217,1772.1,1771.7,6.38139842]
[1745477271487,5.64335863,1772.0,1771.7,6.38139842]
[1745477272090,6.42374217,1772.1,1771.7,6.38139842]
[1745477272386,5.64284,1772.2,1771.9,0.73724982]
[1745477272577,5.64284,1772.2,1771.9,1.44954982]
[1745477275787,5.64252025,1772.3,1771.9,7.09318728]
[1745477276595,5.64252025,1772.3,1771.9,0.7123]
[1745477277092,5.64284611,1772.2,1771.9,0.7123]
[1745477278993,5.64252025,1772.3,1771.9,0.7123]
[1745477279297,5.64252025,1772.3,1771.9,6.35578273]
[1745477279470,6.84904028,1772.3,1771.9,6.35578273]
[1745477280295,12.49167797,1772.3,1771.9,6.35578273]
[1745477280601,6.84904028,1772.3,1771.9,6.35578273]
[1745477280891,6.42271018,1772.4,1772.0,6.38029282]
[1745477281095,12.06505045,1772.4,1772.0,6.38029282]
[1745477281594,12.06502454,1772.4,1772.0,6.38029282]
[1745477281898,5.64239344,1772.3,1772.0,0.73724982]
[1745477282472,6.42271018,1772.4,1772.0,6.38055457]
[1745477282710,12.70732657,1772.4,1772.0,6.38055457]
[1745477282863,5.64238676,1772.3,1772.0,6.38055457]
[1745477283507,5.64334085,1772.0,1771.9,0.7123]
[1745477283676,5.64334085,1772.0,1771.6,0.7123]
[1745477283677,5.643771,1771.9,1771.6,0.7123]
[1745477283874,5.643771,1771.9,1771.4,6.38229426]
[1745477284074,0.7781,1771.8,1771.4,0.7123]
[1745477284274,5.64451201,1771.7,1771.3,6.35774333]
[1745477284795,5.64451201,1771.7,1771.3,6.35782382]
[1745477284999,6.42219669,1771.8,1771.3,6.35761922]
[1745477285207,6.42219669,1771.8,1771.4,6.38238029]
[1745477286745,6.42219669,1771.8,1771.4,6.38227113]
[1745477287266,5.64351245,1772.0,1771.6,6.3568809]
[1745477287267,6.42152397,1772.0,1771.6,6.3568809]
[1745477287472,5.64310571,1772.1,1771.6,6.3568809]
[1745477287473,5.64322029,1772.1,1771.7,5.64424455]
[1745477287700,6.99868272,1772.1,1771.7,5.64424455]
[1745477287898,1.35546243,1772.1,1771.8,6.38118516]
[1745477288097,11.20795167,1772.2,1771.8,6.38118516]
[1745477288306,10.42985167,1772.2,1771.9,0.7123]
[1745477289376,5.64324458,1772.1,1771.8,1.44954982]
[1745477289685,10.42984263,1772.2,1771.8,1.44954982]
[1745477289686,10.429905,1772.2,1771.8,7.09341823]
[1745477289866,5.64305865,1772.1,1771.8,1.44954982]
[1745477290680,10.42990605,1772.2,1771.8,1.44954982]
[1745477290882,5.64306294,1772.1,1771.8,1.44954982]
[1745477291316,10.42990605,1772.2,1771.8,1.44954982]
[1745477291317,4.787,1772.2,1771.8,1.44954982]
[1745477291623,5.64354697,1772.0,1771.6,10.09398003]
[1745477291905,5.64354697,1772.0,1771.6,15.7383757]
[1745477292084,5.64354697,1772.0,1771.6,1.44954982]
[1745477292287,6.42164697,1772.0,1771.6,1.44954982]
[1745477292784,6.42164697,1772.0,1771.6,7.09414708]
[1745477294609,12.06529326,1772.0,1771.6,7.09414708]
[1745477294906,6.42163506,1772.0,1771.6,7.09414617]
[1745477295700,12.0652728,1772.0,1771.6,7.09414617]
[1745477296017,6.42163506,1772.0,1771.6,7.09414617]
[1745477296201,12.06526908,1772.0,1771.6,7.09414617]
[1745477296522,6.42163506,1772.0,1771.6,7.09414617]
[1745477296917,6.42163506,1772.0,1771.6,1.44954982]
[1745477297804,6.42163506,1772.0,1771.6,7.09401607]
[1745477298134,0.7781,1772.0,1771.6,7.09401607]
[1745477298280,5.64320204,1772.1,1771.7,5.64428246]
[1745477298912,5.64320204,1772.1,1771.6,7.80341768]
[1745477298913,5.643401,1772.0,1771.6,7.80341768]
[1745477299114,5.64320204,1772.1,1771.7,5.64422995]
[1745477299724,11.28650329,1772.1,1771.7,5.64422995]
[1745477299926,5.64346668,1772.0,1771.6,7.80338716]
[1745477301923,5.64346668,1772.0,1771.6,7.09398555]
[1745477302433,5.64346668,1772.0,1771.6,7.09392408]
[1745477303736,5.64320873,1772.1,1771.6,7.09392408]
[1745477303884,5.64320873,1772.1,1771.4,3.0]
[1745477303885,5.64287389,1772.2,1771.9,0.7123]
[1745477304088,10.42849287,1772.3,1771.9,0.7123]
[1745477304343,10.42849287,1772.3,1771.9,6.35579442]
[1745477304498,5.64187967,1772.5,1772.0,6.38033874]
[1745477304697,11.21202453,1772.6,1772.3,5.64227556]
[1745477304698,4.786,1772.6,1772.3,5.64227556]
[1745477304925,3.79168763,1772.7,1772.4,6.35425461]
[1745477305634,3.79168763,1772.7,1772.4,2.08497528]
[1745477305850,3.79168763,1772.7,1772.4,7.72679722]
[1745477306339,3.79168763,1772.8,1772.4,7.72679722]
[1745477306502,9.43248232,1772.8,1772.4,7.72679722]
[1745477306937,9.43248232,1772.8,1772.4,1.34772546]
[1745477307242,5.64123603,1772.7,1772.4,0.7123]
[1745477308232,6.42573603,1772.7,1772.4,0.7123]
[1745477308641,6.42573603,1772.7,1772.3,7.09173949]
[1745477309743,9.43262796,1772.8,1772.4,5.64205835]
[1745477309906,3.79168763,1772.8,1772.5,5.64158042]
[1745477310405,9.43250791,1772.8,1772.4,5.64188322]
[1745477311907,5.64082028,1772.8,1772.4,5.64188322]
[1745477313043,5.64082028,1772.8,1772.4,5.64185637]
[1745477313246,11.2110525,1772.9,1772.5,6.20578903]
[1745477313552,5.64085277,1772.8,1772.5,0.56418564]
[1745477314251,11.2110525,1772.9,1772.5,6.20590733]
[1745477315551,11.2110525,1772.9,1772.5,0.56418564]
[1745477315851,5.64082039,1772.8,1772.5,0.56418564]
[1745477316249,5.6411712,1772.7,1772.5,0.56418564]
[1745477316429,5.64082039,1772.8,1772.4,5.64205046]
[1745477318559,5.64115649,1772.7,1772.3,7.92795844]
[1745477318759,5.641061,1772.8,1772.4,5.64203686]
[1745477318928,5.64147268,1772.6,1772.3,2.28574219]
[1745477319123,11.28251434,1772.7,1772.3,2.28574219]
[1745477319660,5.64111594,1772.7,1772.3,2.28574219]
[1745477320224,5.64111594,1772.7,1772.3,7.92810553]
[1745477321059,5.64111594,1772.7,1772.4,0.73724982]
[1745477321368,5.64111594,1772.7,1772.3,7.92810553]
[1745477322068,5.64111594,1772.7,1772.4,0.79281055]
[1745477325967,5.64099067,1772.8,1772.4,7.17196188]
[1745477326673,5.64128519,1772.7,1772.4,1.53006037]
[1745477326889,5.64128519,1772.7,1772.3,7.92801468]
[1745477328634,5.64128519,1772.7,1772.3,7.9278963]
[1745477329560,5.64128519,1772.7,1772.3,13.57005951]
[1745477329863,5.64128519,1772.7,1772.3,7.9278963]
[1745477330779,11.28266776,1772.7,1772.3,7.9278963]
[1745477330982,5.64157939,1772.6,1772.3,0.7123]
[1745477331533,5.64188907,1772.5,1772.3,0.7123]
[1745477331844,5.64196743,1772.5,1772.2,0.73724982]
[1745477332368,5.64162629,1772.6,1772.2,6.37993046]
[1745477332571,5.64191152,1772.5,1772.2,0.73724982]
[1745477332779,5.64163155,1772.6,1772.2,6.37993312]
[1745477333155,6.46948421,1772.7,1772.3,5.6423514]
[1745477333343,5.64148427,1772.6,1772.2,7.65343516]
[1745477333541,5.64179498,1772.5,1772.1,1.44954982]
[1745477333752,6.46999498,1772.5,1772.1,7.09254883]
[1745477334199,12.11202527,1772.5,1772.1,7.09254883]
[1745477334673,5.64207728,1772.4,1772.1,1.44954982]
[1745477335069,5.64240047,1772.3,1771.9,9.38069738]
[1745477335236,5.64225031,1772.4,1772.0,5.64333335]
[1745477336062,11.28462926,1772.4,1772.0,5.64333335]
[1745477336264,5.64225031,1772.4,1772.0,5.64333335]
[1745477339861,5.64225031,1772.4,1772.1,0.73724982]
[1745477340067,6.47012588,1772.5,1772.1,0.73724982]
[1745477340276,6.46931306,1772.7,1772.3,0.73724982]
[1745477340802,0.8282,1772.7,1772.4,5.64204939]
[1745477341009,6.46951439,1772.7,1772.3,0.73724982]
[1745477341177,5.64150744,1772.6,1772.3,0.73724982]
[1745477341574,5.64175718,1772.5,1772.2,0.7123]
[1745477341778,5.64211048,1772.4,1772.2,0.7123]
[1745477341977,5.64188462,1772.5,1772.2,0.7123]
[1745477343007,5.64188462,1772.5,1772.1,7.09256915]
[1745477343427,5.64211479,1772.4,1772.1,1.44954982]
[1745477344823,5.64211479,1772.4,1772.1,0.73724982]
[1745477347229,5.64211479,1772.4,1772.1,1.44651738]
[1745477347387,6.47465162,1772.5,1772.1,7.08952759]
[1745477347583,12.11667635,1772.5,1772.1,7.08952759]
[1745477347887,6.47465162,1772.5,1772.1,7.08952759]
[1745477348725,6.47465162,1772.5,1772.1,1.44651738]
[1745477348903,5.64207224,1772.4,1772.1,1.44651738]
[1745477352218,6.47464287,1772.5,1772.1,7.08953675]
[1745477352418,12.1166949,1772.5,1772.1,7.08953675]
[1745477352727,6.47464287,1772.5,1772.1,7.08953675]
[1745477352931,12.11667436,1772.5,1772.1,7.08953675]
[1745477353536,5.64208161,1772.4,1772.1,1.44651738]
[1745477353842,5.64238655,1772.3,1772.1,1.44651738]
[1745477354003,5.6422508,1772.4,1772.1,1.44651738]
[1745477354538,5.64248061,1772.3,1772.0,0.7123]
[1745477355039,5.64325656,1772.1,1771.7,7.09365027]
[1745477355822,5.64325656,1772.1,1771.7,12.7377379]
[1745477356714,5.64325656,1772.1,1771.7,7.09363745]
[1745477356916,5.64317278,1772.1,1771.7,7.09363745]
[1745477357210,5.64317278,1772.1,1771.7,8.36746075]
[1745477358640,5.64335771,1772.0,1771.7,2.72337312]
[1745477359344,0.7929,1772.1,1771.7,8.36764622]
[1745477359642,6.43536094,1772.3,1771.9,0.73724982]
[1745477359845,11.21681127,1772.5,1772.0,5.64314994]
[1745477360140,5.64126275,1772.7,1772.3,7.09191992]
[1745477360461,4.58458763,1772.8,1772.3,1.44954982]
[1745477360734,3.79168763,1772.8,1772.5,6.37895899]
[1745477361049,3.79168763,1772.8,1772.5,1.44954982]
[1745477361603,3.79168763,1772.8,1772.5,2.15869174]
[1745477362543,3.79168763,1772.8,1772.5,7.80026306]
[1745477364531,3.79168763,1772.8,1772.5,7.06301324]
[1745477364738,3.79168763,1772.8,1772.5,7.80023475]
[1745477364938,3.79168763,1772.8,1772.7,6.37836224]
[1745477365249,3.79168763,1772.8,1772.7,11.29261676]
[1745477365454,0.7929,1773.3,1773.0,5.64007773]
[1745477365656,0.7929,1773.5,1773.0,1.44954982]
[1745477365800,0.7929,1773.5,1773.1,5.63969256]
[1745477365801,6.43151467,1773.5,1773.1,5.63969256]
[1745477366002,0.7929,1773.5,1773.1,5.63969256]
[1745477366232,3.79168763,1773.6,1773.3,5.63919727]
[1745477366434,3.79168763,1773.6,1773.3,0.7123]
[1745477366843,15.06862749,1773.6,1773.3,0.7123]
[1745477367136,9.4300837,1773.6,1773.3,0.7123]
[1745477367301,3.79168763,1773.6,1773.3,0.7123]
[1745477367503,9.43009966,1773.6,1773.3,0.7123]
[1745477368442,5.63857242,1773.5,1773.3,0.7123]
[1745477368739,15.06849492,1773.6,1773.3,0.7123]
[1745477369046,9.42994434,1773.6,1773.3,0.7123]
[1745477369942,5.63858261,1773.5,1773.3,0.7123]
[1745477370969,5.5749,1773.7,1773.1,1.42122424]
[1745477371244,5.63932689,1773.3,1773.1,0.7123]
[1745477371469,5.63952176,1773.2,1772.9,1.44954982]
[1745477371607,5.63933977,1773.3,1772.9,7.0900215]
[1745477371809,5.6385678,1773.5,1773.0,5.63992544]
[1745477372022,5.63900738,1773.4,1773.0,6.37717526]
[1745477372208,5.63900738,1773.4,1773.1,0.63771753]
[1745477372447,5.63921955,1773.3,1773.0,0.73724982]
[1745477373134,5.63922186,1773.3,1773.0,0.73724982]